Cogmind - Beta 17 @@@ ROGUE MODE // 2026.08.05 @ 10:21:33 Player: MeatnTaters Result: Destroyed by X-67 Chaingunner with Minigun Performance ------------- Evolutions (3) 1500 Regions Visited (6) 1200 Robots Destroyed (26) 130 Value Destroyed (378) 378 Prototype IDs (23) 460 Alien Tech Used (0) 0 Bonus (300) 300 TOTAL SCORE: 3968 Bonus ------- Aligned with FarCom 300 Cogmind --------- Core Integrity 0/700 Matter 202/300 Energy 72/100 System Corruption 0% Temperature Cool (0) Movement Core (350) Ox6 Location -7/Factory Parts ------- > --- POWER (1) -------- (None) > --- PROPULSION (6) --- (None) > --- UTILITY (4) ------ Large Storage Unit > --- WEAPON (2) ------- (None) > --- INVENTORY (15) --- Ion Engine Large Storage Unit Seismic Detector Particle Charger Hacking Suite Peak State ------------ > --- POWER ------------ Ion Engine > --- PROPULSION ------- Wheel Wheel Wheel Wheel Wheel Wheel > --- UTILITY ---------- Large Storage Unit Trap Scanner Propulsion Shielding System Shield > --- WEAPON ----------- Heavy Ion Cannon Missile Launcher > --- INVENTORY -------- Ion Engine Ion Engine Wheel Large Storage Unit Seismic Detector Particle Charger Core Shielding Hacking Suite Medium Laser Small Laser Beam Cannon Assault Rifle Light Assault Rifle [Rating: 23] Favorites ----------- Power Ion Engine Engine Ion Engine Propulsion Wheel Wheel Wheel Utility Large Storage Unit Device Trap Scanner Storage Large Storage Unit Hackware System Shield Protection Propulsion Shielding Weapon Beam Cannon Energy Gun Medium Laser Energy Cannon Beam Cannon Ballistic Gun Assault Rifle Launcher Missile Launcher Build | -11 -10 -10 -10 -9 -8 -7 ------- Run | Yrd Mat Min Exi Min Mat Fac Slots Evolved 6 | . . . . . 4 2 Power . | . . . . . . . Propulsion 4 | . . . . . 2 2 Utility 2 | . . . . . 2 . Weapon . | . . . . . . . Parts Attached 29 | 7 2 . . . 11 9 Power 3 | 1 1 . . . . 1 Engine 3 | 1 1 . . . . 1 Core . | . . . . . . . Reactor . | . . . . . . . Propulsion 9 | 2 . . . . 5 2 Treads . | . . . . . . . Leg . | . . . . . . . Wheel 9 | 2 . . . . 5 2 Hover . | . . . . . . . Flight . | . . . . . . . Utility 9 | 2 . . . . 6 1 Device 4 | 1 . . . . 3 . Storage 2 | 1 . . . . 1 . Processor . | . . . . . . . Hackware 1 | . . . . . 1 . Protection 2 | . . . . . 1 1 Artifact . | . . . . . . . Weapon 8 | 2 1 . . . . 5 Energy Gun 2 | 1 . . . . . 1 Energy Cannon 2 | . 1 . . . . 1 Ballistic Gun 3 | 1 . . . . . 2 Ballistic Cannon . | . . . . . . . Launcher 1 | . . . . . . 1 Special Weapon . | . . . . . . . Impact Weapon . | . . . . . . . Slashing Weapon . | . . . . . . . Piercing Weapon . | . . . . . . . Special Melee Weapon . | . . . . . . . Unidentified Prototypes . | . . . . . . . Parts Lost 18 | . . . . . 1 17 Power 2 | . . . . . . 2 Propulsion 7 | . . . . . 1 6 Utility 5 | . . . . . . 5 Weapon 4 | . . . . . . 4 Highest Loss Streak 9 | . . . . . 1 9 To Critical Strikes . | . . . . . . . Average Backups 8 | 2 5 8 8 8 9 11 Power 1 | . 1 2 2 2 2 1 Propulsion . | . 2 2 2 2 . . Utility 2 | . . . . 1 3 4 Weapon 3 | . 2 4 3 3 3 3 Tool/Special . | . . . . . . . Unused Backups 3 | . . . 1 . . 2 Power . | . . . . . . . Propulsion . | . . . . . . . Utility 2 | . . . . . . 2 Weapon 1 | . . . 1 . . . Tool/Special . | . . . . . . . Average Slot Usage (%) 91 | . 100 100 100 100 95 76 Engine 9 | . 14 14 14 14 9 5 Wheel 31 | . 28 28 28 28 35 31 Device 12 | . 14 14 14 14 15 6 Storage 10 | . 14 14 14 14 9 7 Hackware 3 | . . . . . 6 4 Protection 1 | . . . . . . 4 Energy Gun 5 | . 11 . . . 7 6 Energy Cannon 8 | . 2 14 14 14 9 5 Ballistic Gun 5 | . 14 14 14 14 1 1 Peak Build Rating 23 | 7 7 7 7 7 18 23 Average Rating 12 | 5 7 7 7 7 15 16 On Entrance 7 | . 7 7 7 7 7 16 Avg Prop Armor Cover (%) . | . . . . . . . Naked Turns . | . . . . . . . Heaviest Build 42 | 15 16 16 16 16 36 42 Greatest Support 60 | 20 20 20 20 20 46 60 Greatest Overweight (x) 9 | . . . . . 1 9 Average Overweight (x) . | . . . . . . . Largest Inventory Capacity 15 | 8 8 8 8 8 15 15 Average Capacity 12 | 7 8 8 8 8 14 15 Most Carried 14 | 4 8 8 8 8 13 14 Average Carried 8 | 2 5 8 7 8 9 11 Final Capacity 15 | 8 8 8 8 8 15 15 Final Carried 13 | 4 8 8 8 8 13 5 Class Distribution -------------------- 76% | Mutant 23% | Scavenger-Mutant Dominant Class ---------------- Mutant | -10/Materials Mutant | -10/Mines Mutant | -10/Exiles Mutant | -9/Mines Mutant | -8/Materials Scavenger-Mutant | -7/Factory Resources | -11 -10 -10 -10 -9 -8 -7 ----------- Run | Yrd Mat Min Exi Min Mat Fac Matter Collected 649 | 303 62 3 . . 130 151 Remotely . | . . . . . . . Salvage Created 815 | 123 123 . . . 400 169 Parts 48 | 7 10 . . . 15 16 Haulers Intercepted 1 | . 1 . . . . . Recyclers Shooed 2 | 1 . . . . 1 . Parts Field Recycled . | . . . . . . . Retrieved Matter . | . . . . . . . Parts Self-Destructed . | . . . . . . . Prevented . | . . . . . . . Parts Restored . | . . . . . . . Kills | -11 -10 -10 -10 -9 -8 -7 ------- Run | Yrd Mat Min Exi Min Mat Fac Combat Hostiles Destroyed 13 | . 4 . . . 5 4 Guns 7 | . 4 . . . 1 2 Cannons 4 | . . . . . 4 . AOE 1 | . . . . . . 1 Classes Destroyed 11 | 2 3 . . . 2 4 Worker 4 | . . . . . 3 1 Builder 2 | . . . . . . 2 Tunneler 2 | 2 . . . . . . Hauler 1 | . 1 . . . . . Recycler 3 | 1 . . . . 2 . Mechanic 1 | . . . . . 1 . Swarmer 7 | . 3 . . . 4 . Cutter 2 | . . . . . . 2 Grunt 2 | . 1 . . . 1 . Specialist 1 | . . . . . . 1 Hunter 1 | . . . . . . 1 Best Kill Streak 6 | 2 3 . . . 6 4 Combat Bots Only 4 | . 3 . . . 4 1 Max Kills in Single Turn 1 | 1 1 . . . 1 1 Gunslinging . | . . . . . . . Exploded 1 | . . . . . . 1 Melee . | . . . . . . . Uniques/NPCs Destroyed . | . . . . . . . Combat | -11 -10 -10 -10 -9 -8 -7 -------- Run | Yrd Mat Min Exi Min Mat Fac Hostile Shots Fired 107 | . 10 . . . 16 81 Missed 17 | . 1 . . . 3 13 Hits 90 | . 9 . . . 13 68 Melee 8 | . . . . . . 8 Projectile 82 | . 9 . . . 13 60 AOE 1 | . . . . . . 1 Critical Strikes 10 | . . . . . . 10 Actively Blocked 1 | . . . . . . 1 Damage Taken 2198 | . 76 . . . 111 2011 Core 764 | . 24 . . . 22 718 Absorbed by Shields . | . . . . . . . Redirected to Shielding 104 | . . . . . . 104 Core Remaining (%) 95 | 100 . . . 90 96 . Volleys Fired 91 | 11 15 . . . 27 38 Largest 2 | 2 2 . . . 2 2 Hottest 115 | 70 80 . . . 110 115 Shots Fired 159 | 22 30 . . . 54 53 Gun 112 | 22 27 . . . 27 36 Cannon 38 | . 3 . . . 27 8 Launcher 9 | . . . . . . 9 Special . | . . . . . . . Kinetic 40 | 11 15 . . . . 14 Thermal 110 | 11 15 . . . 54 30 Explosive 9 | . . . . . . 9 Electromagnetic . | . . . . . . . Robot Hit Streak 12 | 7 10 . . . 5 12 Robot Miss Streak 3 | 3 2 . . . 3 3 Penetration Max . | . . . . . . . Secondary Targets . | . . . . . . . Shots Hit Robots 97 | 13 17 . . . 32 35 Core Hits 47 | 4 7 . . . 18 18 Critical Kills . | . . . . . . . Critical Parts Destroyed . | . . . . . . . Critical Strikes 3 | . 1 . . . 1 1 Burn 3 | . 1 . . . 1 1 Melee Attacks . | . . . . . . . Impact . | . . . . . . . Slashing . | . . . . . . . Piercing . | . . . . . . . Sneak Attacks . | . . . . . . . Combat Hostiles . | . . . . . . . Follow-up Attacks . | . . . . . . . Damage Inflicted 1802 | 161 214 . . . 514 913 Guns 893 | 161 214 . . . 163 355 Cannons 456 | . . . . . 351 105 Explosions 453 | . . . . . . 453 Melee . | . . . . . . . Ramming . | . . . . . . . Kinetic 342 | 86 78 . . . . 178 Thermal 1007 | 75 136 . . . 514 282 Explosive 453 | . . . . . . 453 Electromagnetic . | . . . . . . . Impact . | . . . . . . . Slashing . | . . . . . . . Piercing . | . . . . . . . Highest Corruption . | . . . . . . . Average Corruption . | . . . . . . . Corruption Purged . | . . . . . . . Corruption Blocked . | . . . . . . . Overload Shots . | . . . . . . . Overflow Damage 47 | . . . . . . 47 Projectiles . | . . . . . . . Explosions 47 | . . . . . . 47 Melee . | . . . . . . . Knockbacks . | . . . . . . . Impact . | . . . . . . . Kinetic . | . . . . . . . Secondary . | . . . . . . . Self-Inflicted Damage 54 | . . . . . . 54 Shots 1 | . . . . . . 1 Rammed . | . . . . . . . Targets Rammed . | . . . . . . . Kicked . | . . . . . . . Crushed . | . . . . . . . Highest Temperature 304 | 27 45 . . . 304 36 Average Temperature 60 | 11 18 . . . 105 11 Received Heat Transfer 21 | . 12 . . . 9 . Effects 2 | . . . . . 2 . Energy Bleed 2 | . . . . . 2 . Siege Activations . | . . . . . . . Martial Activations . | . . . . . . . Shielding Activations . | . . . . . . . Robots Disrupted . | . . . . . . . Combat Hostiles . | . . . . . . . Robots Corrupted . | . . . . . . . Combat Hostiles . | . . . . . . . Parts Fried . | . . . . . . . Impact Corruptions . | . . . . . . . Robots Melted 1 | . . . . . . 1 Combat Hostiles 1 | . . . . . . 1 Parts Melted 5 | . 1 . . . 3 1 Heat Transferred 2741 | 222 481 . . . 1295 743 Parts Sabotaged . | . . . . . . . Parts Stolen . | . . . . . . . Parts Stripped . | . . . . . . . Power Chain Reactions . | . . . . . . . Alert | -11 -10 -10 -10 -9 -8 -7 ------- Run | Yrd Mat Min Exi Min Mat Fac Maximum Alert Level . | . . . . . . . Low Security (%) 100 | 100 100 100 . 100 100 100 Level 1 . | . . . . . . . Level 2 . | . . . . . . . Level 3 . | . . . . . . . Level 4 . | . . . . . . . Level 5 . | . . . . . . . High Security . | . . . . . . . Max Security . | . . . . . . . Peak Influence 99 | 5 96 28 . . 99 33 Initial 33 | . 3 28 . . . 33 Average 15 | 1 56 7 . . 17 6 Influence Increases 472 | 15 123 . . . 156 178 Destroy 0b10 Robot/C 260 | . 80 . . . 100 80 Destroy 0b10 Robot/NC 65 | 15 5 . . . 30 15 Destroy Leader 62 | . 22 . . . 10 30 Disable Machine 15 | . . . . . 15 . Destroy Structure 25 | . 1 . . . 1 23 Lose Combat Pursuer 45 | . 15 . . . . 30 Influence Decreases 472 | 10 55 73 . . 82 252 Entered New Map 88 | . 2 45 . . . 41 Time Decay 287 | 10 53 28 . . 72 124 Lost Part 97 | . . . . . 10 87 Squads Dispatched 11 | . 2 . . . 1 8 Investigation . | . . . . . . . Extermination 1 | . . . . . . 1 Reinforcement 10 | . 2 . . . 1 7 Assault . | . . . . . . . Garrison . | . . . . . . . Intercept . | . . . . . . . Searches Triggered . | . . . . . . . Construction Impeded 1 | . . . . . . 1 Haulers Reinforced . | . . . . . . . Active Scanning Responses . | . . . . . . . Cargo Convoy Interrupts . | . . . . . . . Stealth | -11 -10 -10 -10 -9 -8 -7 --------- Run | Yrd Mat Min Exi Min Mat Fac Distress Signals 5 | . 1 . . . 3 1 Communications Jammed . | . . . . . . . Distress Signals . | . . . . . . . Times Spotted 30 | . 7 . . . 15 8 Peak Tracking Total 4 | . 3 . . . 3 4 Tactical Retreats 5 | . 1 . . . 2 2 ECM-based Alert Blocks 3 | . . . . . 3 . Traps | -11 -10 -10 -10 -9 -8 -7 ------- Run | Yrd Mat Min Exi Min Mat Fac Traps Triggered . | . . . . . . . Indirectly . | . . . . . . . Trap Hack Attempts . | . . . . . . . Triggered . | . . . . . . . Disarmed . | . . . . . . . Reprogrammed . | . . . . . . . Reused . | . . . . . . . Traps Extracted . | . . . . . . . Installed . | . . . . . . . Triggered . | . . . . . . . Machines | -11 -10 -10 -10 -9 -8 -7 ---------- Run | Yrd Mat Min Exi Min Mat Fac Machines Disabled 1 | . . . . . 1 . Max in Single Turn 1 | . . . . . 1 . Garrison Access 1 | . . . . . 1 . Machines Repaired . | . . . . . . . Machines Dismantled . | . . . . . . . Machines Sabotaged . | . . . . . . . Overloaded Fab Kills . | . . . . . . . Hacking | -11 -10 -10 -10 -9 -8 -7 --------- Run | Yrd Mat Min Exi Min Mat Fac Machines Accessed 10 | . 1 . 2 . 4 3 Terminals 6 | . 1 . . . 2 3 Fabricators . | . . . . . . . Repair Stations . | . . . . . . . Recycling Units 1 | . . . . . 1 . Scanalyzers . | . . . . . . . Garrison Access 1 | . . . . . 1 . Total Hacks 38 | . 2 . 24 . 7 5 Successful 28 | . . . 24 . 4 . Failed 10 | . 2 . . . 3 5 Catastrophic 4 | . 1 . . . 1 2 Database Lockouts . | . . . . . . . Manual 6 | . 2 . 1 . 3 . Terminals 11 | . 2 . . . 4 5 Fabricators . | . . . . . . . Repair Stations . | . . . . . . . Recycling Units 1 | . . . . . 1 . Scanalyzers . | . . . . . . . Garrison Access 2 | . . . . . 2 . Terminal Hacks 26 | . . . 24 . 2 . Record 23 | . . . 23 . . . Level Access Points 1 | . . . . . 1 . Alert Level 1 | . . . . . 1 . Proto ID Catalog 1 | . . . 1 . . . Fabricator Hacks . | . . . . . . . Repair Station Hacks . | . . . . . . . Recycling Unit Hacks 1 | . . . . . 1 . Retrieve Components 1 | . . . . . 1 . Scanalyzer . | . . . . . . . Garrison Access Hacks 1 | . . . . . 1 . Seal Access 1 | . . . . . 1 . Unauthorized Hacks . | . . . . . . . Terminals . | . . . . . . . Fabricators . | . . . . . . . Repair Stations . | . . . . . . . Recycling Units . | . . . . . . . Scanalyzers . | . . . . . . . Garrison Access . | . . . . . . . Data Cores Recovered . | . . . . . . . Used . | . . . . . . . Hacking Detections 6 | . 1 . . . 2 3 Full Trace Events . | . . . . . . . Feedback Events . | . . . . . . . Feedback Blocked . | . . . . . . . Robot Schematics Acquired . | . . . . . . . Robots Built . | . . . . . . . Authchips . | . . . . . . . Time . | . . . . . . . Total Robot Build Rating . | . . . . . . . Part Schematics Acquired . | . . . . . . . Parts Built . | . . . . . . . Authchips . | . . . . . . . Time . | . . . . . . . Total Part Build Rating . | . . . . . . . Part Studies Acquired . | . . . . . . . Parts Repaired . | . . . . . . . Time . | . . . . . . . Parts Recycled . | . . . . . . . Recycled Matter . | . . . . . . . Retrieved Matter . | . . . . . . . Retrieved Components 2 | . . . . . 2 . Parts Scanalyzed . | . . . . . . . Part Schematics Acquired . | . . . . . . . Parts Damaged . | . . . . . . . Bothacking | -11 -10 -10 -10 -9 -8 -7 ------------ Run | Yrd Mat Min Exi Min Mat Fac Used RIF Installer . | . . . . . . . Robots Hacked . | . . . . . . . Non-combat . | . . . . . . . Combat . | . . . . . . . Robot Hacks Applied . | . . . . . . . Relay Couplers Released . | . . . . . . . Fabnet Peak Effective % . | . . . . . . . Robots Rewired . | . . . . . . . Allies Hacked . | . . . . . . . Hacks Repelled . | . . . . . . . Allies | -11 -10 -10 -10 -9 -8 -7 -------- Run | Yrd Mat Min Exi Min Mat Fac Total Allies . | . . . . . . . Largest Group . | . . . . . . . Highest-Rated Group . | . . . . . . . Highest-Rated Ally . | . . . . . . . Total Orders . | . . . . . . . Ally Attacks . | . . . . . . . Total Damage . | . . . . . . . Kills . | . . . . . . . Allies Corrupted . | . . . . . . . Allies Melted . | . . . . . . . Intel | -11 -10 -10 -10 -9 -8 -7 ------- Run | Yrd Mat Min Exi Min Mat Fac Active Infowar (turns) 1762 | 28 159 141 361 14 622 437 Traps 1019 | . . . . . 582 437 Seismic 741 | 28 159 141 361 14 38 . ECM 395 | . . . . . 356 39 Robot Analysis Total . | . . . . . . . Derelict Logs Recovered . | . . . . . . . Drone Launches . | . . . . . . . Drone Recoveries . | . . . . . . . Exploration | -11 -10 -10 -10 -9 -8 -7 ------------- Run | Yrd Mat Min Exi Min Mat Fac Turns Passed 2110 | 96 159 141 361 14 695 644 Spaces Moved 1555 | 64 118 123 450 18 436 346 Core 27 | 10 . . . . . 17 Treads . | . . . . . . . Legs . | . . . . . . . Wheels 1528 | 54 118 123 450 18 436 329 Hover . | . . . . . . . Flight . | . . . . . . . Fastest Speed 50 | 50 80 80 80 80 80 80 Average Speed 84 | 75 80 80 80 80 80 101 Slowest Speed 500 | 80 80 80 80 80 95 500 Overloaded Moves . | . . . . . . . Propulsion Burnouts . | . . . . . . . Robots Hopped . | . . . . . . . Potential Cave-ins . | . . . . . . . Cave-ins Triggered . | . . . . . . . Exploration Rate (%) 24 | 4 22 30 71 10 31 4 Regions Visited 6 Branch Regions 3 Pre-discovered Areas 1 | . . . 1 . . . Known Exits Taken 1 | . . . . . 1 . Unknown Exits Taken 5 | 1 1 1 1 1 . . Scrap Searched 1 | . . 1 . . . . Spaces Dug . | . . . . . . . Terrain Destroyed 29 | . . . . . . 29 Melee . | . . . . . . . Projectile . | . . . . . . . AOE 29 | . . . . . . 29 Terrain Rammed . | . . . . . . . Walls Destroyed . | . . . . . . . Machines Disabled . | . . . . . . . Actions | -11 -10 -10 -10 -9 -8 -7 --------- Run | Yrd Mat Min Exi Min Mat Fac Total 2179 | 87 151 165 451 17 724 584 Wait 474 | . 14 43 . . 239 178 Move 1549 | 63 117 122 449 17 435 346 Hop . | . . . . . . . Pick Up 19 | 6 3 . 1 . 6 3 Fast Attach 10 | 5 . . . . 4 1 Attach 18 | 2 . . . . 3 13 Detach 4 | . . . . . 2 2 Swap 11 | . 2 . . . 6 3 Drop 3 | . . . 1 . 2 . Fire 91 | 11 15 . . . 27 38 Melee . | . . . . . . . Ram . | . . . . . . . Kick . | . . . . . . . Crush . | . . . . . . . Escape Stasis . | . . . . . . . Rewire . | . . . . . . . Trap . | . . . . . . . Miscellaneous . | . . . . . . . Route ------- -11/Scrapyard -10/Materials -10/Mines -10/Exiles -9/Mines -8/Materials (discovered 3 exits: *Fac x3) -7/Factory (discovered 1 exit: [*Low]) History --------- Turn | Location | Event 23 | -11/Scrapyard | Discovered new exit (range 14) 97 | -11/Scrapyard | Entered Materials 188 | -10/Materials | Discovered new exit (range 8) 248 | -10/Materials | Met 8R-AWN 256 | -10/Materials | Entered Mines 257 | -10/Mines | Followed 8R-AWN into the Mines 291 | -10/Mines | Assembled infested the area 296 | -10/Mines | Assisted by a Guerilla fighting off Assembled 304 | -10/Mines | Build established: Mutant 394 | -10/Mines | Discovered new exit (range 5) 397 | -10/Mines | Entered Exiles 417 | -10/Exiles | Welcomed by 8R-AWN 430 | -10/Exiles | Met EX-HEX 470 | -10/Exiles | Met EX-DEC 486 | -10/Exiles | Learned location of Zion (-6) 585 | -10/Exiles | Discovered new exit (range 14) 633 | -10/Exiles | Met EX-BIN 646 | -10/Exiles | Aligned with FarCom system 647 | -10/Exiles | Given EX-Vault access code 666 | -10/Exiles | Opened EX-Vault 701 | -10/Exiles | Warned to stay clear of 0b10 Research branches 758 | -10/Exiles | Entered Mines 763 | -9/Mines | Met a Derelict bent on vengeance 769 | -9/Mines | Discovered new exit (range 5) 772 | -9/Mines | Entered Materials 772 | -8/Materials | Evolved 4 slots: Propulsion x2, Utility x2 1400 | -8/Materials | Identified exit to Factory 1467 | -8/Materials | Entered Factory 1467 | -7/Factory | Evolved 2 slots: Propulsion x2 1544 | -7/Factory | Discovered new exit (range 14) 1719 | -7/Factory | Build established: Scavenger-Mutant 1952 | -7/Factory | Lost 9 parts (1p5n3u) 1967 | -7/Factory | Core integrity fell below 50% 2094 | -7/Factory | Core integrity fell below 20% 2111 | -7/Factory | Destroyed by X-67 Chaingunner with Minigun Last Messages --------------- 01981_ Penetrated by Slug. 01983_ H-55 Commando heat damages core (-10). 01983_ Lgt. Nuclear Core melted. 01984_ Acquired 42 matter. 01995_ Acquired Gauss Rifle. 02069_ Ion Engine destroyed. 02076_ Slug penetrates X-67 Chaingunner. 02079_ Terminal disabled. 02082_ Slug penetrates X-67 Chaingunner. 02084_ X-67 Chaingunner destroyed. 02086_ Slug penetrates Wall. 02090_ Slug penetrates X-67 Chaingunner. 02093_ Core Shielding destroyed. 02096_ Slug penetrates Wall. 02097_ Gauss Rifle destroyed. 02104_ Sml. Laser destroyed. 02107_ Beam Cannon destroyed. 02109_ Acquired 78 matter. 02111_ ALERT: Suspicious intruders detected, dispatching Specialist reinforcements to area. Map ----- +----------------------------------------------------+ | | | | | | | | | | | | | | | | | | | | | | | | | ??###################????????????????????????????? | | ??# #????????????????????????????? | | ??# #????????????????????????????? | | ??# ! #?????????????????####???????? | | ??# #??????????####### ###??????? | | ??# #?????????##" "### #??????? | | ??# #?#######?# ########?? | | ??# #?# ##### ? | | ###########+#######+### ? | | """T""" # " [% < ? | | """ """ # #####+### = [ ? | | # ## # p*! ####]=%% ? | | """" + ##! "" ###x####?# ]/ ###+####?? | | """" # ## "" # !@[ #?# % ##????????? | | """" !# ## T" # " " #?# * #?????????? | | ! """" # ## "" # "T" #?## #?????????? | | # ## "" # " " #?### #?????????? | | ######### ## # #???? #?????????? | | ######### ## # #???? #????????? | | # ################???? # ???????? | | " " # # #?????? ??????? | | " " # # #?????? ! ?????? | | " " # # #?????? % # ????? | | " " # # ##???h? ????? | | " " # # / H ??????? | | " " # # ##### ????????? | | " " + + #??????? ??????????? | | !!! " " # # ! #??????? ?????????????? | | !! " " # # #?????????????????????? | | ! # # #?????????????????????? | | ####### #?????????????????????? | | #?????# #?????????????????????? | | #?????##############?????????????????????? | | #????????????????????????????????????????? | | #????????????????????????????????????????? | | #########????????????????????????????????????????? | | ?????????????????????????????????????????????????? | | ?????????????????????????????????????????????????? | +----------------------------------------------------+ Best States ------------- Heat Dissipation 34 Energy Generation 10 Energy Capacity 250 Matter Stores 300 Matter Capacity 300 Sight Range 16 Terrain Scan Density 10 ECM Strength 1 Core Shielding 20 Propulsion Shielding 33 Evasion (%) 50 Particle Charging 15 Defensive Hacking 10 Item Schematics ----------------- None Robot Schematics ------------------ None Fabricated ------------ Nothing Repaired ---------- Nothing Studied --------- None Alien Tech Used ----------------- None Achievements -------------- Deductive Reasoning Follow The Leader Sixth Sense That Tickles Challenges ------------ None Game ------ Seed BottomlessRainbowNetwork Manual? 0 Play Time 00:32:46 Cumulative 30.1 hours Start 2026.08.05 @ 09:51:44 End 2026.08.05 @ 10:21:33 Sessions 1 Manual Loads 0 Difficulty Rogue Special Mode None Game No. 39 Rogue 18 Adventurer 21 Explorer 0 Win Type - Total 0 Types 0/0/0/0/0/0/0/0/0/0 Lore% 20 Gallery% 23 Achievement% 21 Wizard Run 0 Options --------- Layout 1 ASCII 0 Keyboard 0 Movement Mouse Keybinds 0 Fullscreen 1 Font 32/SmallcapsGlow Map View 50x35 Zoom Use 0% Tactical HUD 1 Map Filters NONE Filters NONE Steam 1 RUN: aee91c48-4b49-4510-b281-e9a09140aa33